[Event "NOR-chT Eliteserien 2018-19"]
[Site "Norway"]
[Date "2018.11.04"]
[Round "3"]
[White "Stokke, Kjetil"]
[Black "Skrondal, Inge Sandstad"]
[Result "1-0"]
[ECO "B27"]
[WhiteElo "2332"]
[BlackElo "2270"]
[Annotator "broadcasts RC"]
[PlyCount "71"]
[EventDate "2018.11.02"]
[EventType "team-tourn"]
[EventCountry "NOR"]
[TimeControl "40/5400+30:1800+30"]

1. e4 {[%emt 0:00:00]} c5 {[%emt 0:00:00]} 2. Nf3 {[%emt 0:00:00]} g6 {[%emt 0:00:00]} 3. d4 {[%emt 0:00:08]} cxd4 {[%emt 0:00:00]} 4. Qxd4 {[%emt 0:00:29]} Nf6 {[%emt 0:00:00]} 5. e5 {[%emt 0:00:16]} Nc6 {[%emt 0:00:00]} 6. Qf4 {[%emt 0:00:09]} Nd5 {[%emt 0:00:11]} 7. Qe4 {[%emt 0:00:06]} Nb6 {[%emt 0:00:36]} 8. Nc3 {[%emt 0:00:07]} d5 {[%emt 0:00:33]} 9. exd6 {[%emt 0:00:08]} Bf5 {[%emt 0:00:27]} 10. Qh4 {[%emt 0:01:40]} Bg7 {[%emt 0:36:39]} 11. dxe7 {[%emt 0:00:30]} Qxe7+ {[%emt 0:00:10]} 12. Qxe7+ {[%emt 0:00:11]} Nxe7 {[%emt 0:00:11]} 13. Bb5+ {[%emt 0:00:05]} Nc6 {[%emt 0:00:41]} 14. Be3 {[%emt 0:00:06]} O-O {[%emt 0:04:22]} 15. O-O-O {[%emt 0:08:23]} Bg4 {[%emt 0:11:56]} 16. Bxc6 {[%emt 0:06:03]} bxc6 {[%emt 0:00:05]} 17. Bd4 {[%emt 0:00:07]} Bxf3 {[%emt 0:05:18]} 18. gxf3 {[%emt 0:00:30]} Rfd8 {[%emt 0:03:26]} 19. Bxg7 {[%emt 0:00:24]} Kxg7 {[%emt 0:00:03]} 20. Rhe1 {[%emt 0:08:18]} Kf6 {[%emt 0:02:36]} 21. Ne4+ {[%emt 0:04:35]} Kf5 {[%emt 0:00:05]} 22. Nd6+ {[%emt 0:00:40]} Kf4 {[%emt 0:01:20]} 23. Re3 {[%emt 0:07:36]} Rd7 {[%emt 0:01:14]} 24. h4 {[%emt 0:02:58]} c5 {[%emt 0:00:26]} 25. b4 {[%emt 0:00:38]} Nc8 {[%emt 0:04:39]} 26. bxc5 {[%emt 0:05:09]} Nxd6 {[%emt 0:00:07]} 27. Rxd6 {[%emt 0:01:57]} Rxd6 {[%emt 0:00:20]} 28. cxd6 {[%emt 0:00:06]} Rd8 {[%emt 0:04:11]} 29. Rd3 {[%emt 0:00:51]} h5 {[%emt 0:04:18]} 30. c4 {[%emt 0:06:44]} g5 {[%emt 0:00:19]} 31. c5 {[%emt 0:00:33]} gxh4 {[%emt 0:00:38]} 32. c6 {[%emt 0:03:33]} h3 {[%emt 0:00:36]} 33. c7 {[%emt 0:00:05]} Rc8 {[%emt 0:01:24]} 34. Kb2 {[%emt 0:01:07]} h2 {[%emt 0:00:09]} 35. Rd1 {[%emt 0:00:10]} Ke5 {[%emt 0:00:09]} 36. d7 {[%emt 0:00:30]} 1-0

[Event "NOR-chT Eliteserien 2018-19"]
[Site "Norway"]
[Date "2018.11.04"]
[Round "3"]
[White "Flermoen, Peter"]
[Black "Dahl, Trygve"]
[Result "0-1"]
[ECO "B26"]
[WhiteElo "2316"]
[BlackElo "2283"]
[Annotator "broadcasts RC"]
[PlyCount "112"]
[EventDate "2018.11.02"]
[EventType "team-tourn"]
[EventCountry "NOR"]
[TimeControl "40/5400+30:1800+30"]

1. e4 {[%emt 0:00:00]} c5 {[%emt 0:00:00]} 2. Nc3 {[%emt 0:00:00]} Nc6 {[%emt 0:00:00]} 3. g3 {[%emt 0:00:03]} g6 {[%emt 0:00:01]} 4. Bg2 {[%emt 0:00:09]} Bg7 {[%emt 0:00:05]} 5. d3 {[%emt 0:00:41]} d6 {[%emt 0:00:05]} 6. Nge2 {[%emt 0:00:40]} e5 {[%emt 0:00:10]} 7. O-O {[%emt 0:00:19]} Nge7 {[%emt 0:00:05]} 8. Be3 {[%emt 0:00:45]} O-O {[%emt 0:00:26]} 9. Qd2 {[%emt 0:02:44]} Nd4 {[%emt 0:01:24]} 10. f4 {[%emt 0:02:08]} Be6 {[%emt 0:01:18]} 11. Nd1 {[%emt 0:06:51]} Rc8 {[%emt 0:10:00]} 12. c3 {[%emt 0:02:00]} Nxe2+ {[%emt 0:03:46]} 13. Qxe2 {[%emt 0:00:13]} Qd7 {[%emt 0:00:38]} 14. Nf2 {[%emt 0:06:06]} b5 {[%emt 0:03:22]} 15. Qd2 {[%emt 0:11:39]} Rfd8 {[%emt 0:11:37]} 16. fxe5 {[%emt 0:22:27]} dxe5 {[%emt 0:02:30]} 17. Rfd1 {[%emt 0:00:32]} a5 {[%emt 0:10:03]} 18. Bh6 {[%emt 0:05:58]} Nc6 {[%emt 0:07:10]} 19. Bxg7 {[%emt 0:01:06]} Kxg7 {[%emt 0:00:06]} 20. Qe3 {[%emt 0:00:21]} Qe7 {[%emt 0:01:35]} 21. Bf3 {[%emt 0:02:56]} h5 {[%emt 0:06:55]} 22. h4 {[%emt 0:00:41]} Rd7 {[%emt 0:04:30]} 23. Kg2 {[%emt 0:01:57]} Rcd8 {[%emt 0:00:57]} 24. Be2 {[%emt 0:02:38]} b4 {[%emt 0:01:39]} 25. Rdc1 {[%emt 0:03:29]} bxc3 {[%emt 0:02:12]} 26. bxc3 {[%emt 0:00:16]} Rb7 {[%emt 0:00:46]} 27. Rc2 {[%emt 0:02:41]} Rdb8 {[%emt 0:00:15]} 28. Qc1 {[%emt 0:01:56]} a4 {[%emt 0:01:59]} 29. Nd1 {[%emt 0:02:04]} c4 {[%emt 0:02:14]} 30. Ne3 {[%emt 0:06:14]} Qc5 {[%emt 0:01:59]} 31. Nxc4 {[%emt 0:01:01]} Bxc4 {[%emt 0:00:49]} 32. dxc4 {[%emt 0:00:09]} Na5 {[%emt 0:00:28]} 33. Qd2 {[%emt 0:06:45]} Nxc4 {[%emt 0:15:53]} 34. Bxc4 {[%emt 0:00:15]} Qxc4 {[%emt 0:00:02]} 35. Qd5 {[%emt 0:00:32]} Qc7 {[%emt 0:00:52]} 36. Rd1 {[%emt 0:00:28]} Rb2 {[%emt 0:00:16]} 37. Rdd2 {[%emt 0:00:43]} a3 {[%emt 0:00:22]} 38. c4 {[%emt 0:02:42]} Rd8 {[%emt 0:05:11]} 39. Qxd8 {[%emt 0:01:32]} Qxd8 {[%emt 0:00:08]} 40. Rxd8 {[%emt 0:00:00]} Rxc2+ {[%emt 0:00:00]} 41. Kf3 {[%emt 0:01:30]} Rc3+ {[%emt 0:09:12]} 42. Ke2 {[%emt 0:03:06]} Rxc4 {[%emt 0:00:10]} 43. Kf3 {[%emt 0:12:32]} Rc3+ {[%emt 0:00:42]} 44. Kf2 {[%emt 0:00:17]} Rc2+ {[%emt 0:00:29]} 45. Kf3 {[%emt 0:00:27]} Rxa2 {[%emt 0:00:12]} 46. Ra8 {[%emt 0:00:22]} Ra1 {[%emt 0:00:35]} 47. Ra6 {[%emt 0:00:27]} a2 {[%emt 0:00:08]} 48. Kg2 {[%emt 0:00:09]} Kf8 {[%emt 0:01:34]} 49. Ra7 {[%emt 0:00:11]} Ke8 {[%emt 0:00:05]} 50. Ra8+ {[%emt 0:03:29]} Kd7 {[%emt 0:00:13]} 51. Ra7+ {[%emt 0:00:11]} Kc6 {[%emt 0:00:11]} 52. Ra6+ {[%emt 0:00:07]} Kc5 {[%emt 0:00:18]} 53. Ra5+ {[%emt 0:00:09]} Kd4 {[%emt 0:00:18]} 54. Ra4+ {[%emt 0:00:09]} Ke3 {[%emt 0:00:13]} 55. Kh2 {[%emt 0:00:10]} Rd1 {[%emt 0:00:10]} 56. Ra3+ {[%emt 0:00:22]} Rd3 {[%emt 0:00:06]} 0-1

[Event "NOR-chT Eliteserien 2018-19"]
[Site "Norway"]
[Date "2018.11.04"]
[Round "3"]
[White "Hole, Oystein"]
[Black "Bern, Ivar"]
[Result "0-1"]
[ECO "A37"]
[WhiteElo "2307"]
[BlackElo "2295"]
[Annotator "broadcasts RC"]
[PlyCount "70"]
[EventDate "2018.11.02"]
[EventType "team-tourn"]
[EventCountry "NOR"]
[TimeControl "40/5400+30:1800+30"]

1. Nf3 {[%emt 0:00:00]} c5 {[%emt 0:00:00]} 2. c4 {[%emt 0:00:00]} Nc6 {[%emt 0:00:00]} 3. Nc3 {[%emt 0:00:00]} e5 {[%emt 0:00:10]} 4. d3 {[%emt 0:00:09]} d6 {[%emt 0:01:19]} 5. g3 {[%emt 0:00:12]} g6 {[%emt 0:00:37]} 6. Bg2 {[%emt 0:00:10]} Bg7 {[%emt 0:00:07]} 7. O-O {[%emt 0:00:09]} Nge7 {[%emt 0:00:11]} 8. Rb1 {[%emt 0:03:16]} O-O {[%emt 0:00:30]} 9. Ne1 {[%emt 0:02:17]} Be6 {[%emt 0:10:36]} 10. Nd5 {[%emt 0:07:50]} Rb8 {[%emt 0:00:55]} 11. Nc2 {[%emt 0:05:46]} b5 {[%emt 0:05:11]} 12. b4 {[%emt 0:19:30]} bxc4 {[%emt 0:03:14]} 13. dxc4 {[%emt 0:00:16]} Nxb4 {[%emt 0:03:20]} 14. Ncxb4 {[%emt 0:01:16]} cxb4 {[%emt 0:00:10]} 15. Qa4 {[%emt 0:09:06]} a5 {[%emt 0:09:43]} 16. a3 {[%emt 0:02:16]} Nxd5 {[%emt 0:01:13]} 17. cxd5 {[%emt 0:09:56]} Bd7 {[%emt 0:02:34]} 18. Qc2 {[%emt 0:05:22]} Qb6 {[%emt 0:07:21]} 19. axb4 {[%emt 0:00:37]} axb4 {[%emt 0:00:14]} 20. Be3 {[%emt 0:00:09]} b3 {[%emt 0:02:41]} 21. Bxb6 {[%emt 0:07:22]} bxc2 {[%emt 0:03:28]} 22. Rb4 {[%emt 0:00:12]} Rfc8 {[%emt 0:06:00]} 23. Rc1 {[%emt 0:01:00]} f5 {[%emt 0:00:21]} 24. Ba5 {[%emt 0:04:06]} Ra8 {[%emt 0:03:11]} 25. Bb6 {[%emt 0:00:12]} e4 {[%emt 0:00:55]} 26. Be3 {[%emt 0:01:32]} Ra2 {[%emt 0:01:55]} 27. f3 {[%emt 0:04:45]} Rb2 {[%emt 0:02:29]} 28. Rxb2 {[%emt 0:01:42]} Bxb2 {[%emt 0:00:10]} 29. Kf2 {[%emt 0:00:15]} Rc3 {[%emt 0:08:39]} 30. fxe4 {[%emt 0:02:17]} Rxe3 {[%emt 0:00:29]} 31. Rxc2 {[%emt 0:00:12]} Bd4 {[%emt 0:00:17]} 32. Rc4 {[%emt 0:01:18]} Bb6 {[%emt 0:00:40]} 33. Kf1 {[%emt 0:01:02]} fxe4 {[%emt 0:03:26]} 34. Rxe4 {[%emt 0:00:58]} Rxe4 {[%emt 0:00:10]} 35. Bxe4 {[%emt 0:00:06]} Bh3+ {[%emt 0:00:10]} 0-1

[Event "NOR-chT Eliteserien 2018-19"]
[Site "Norway"]
[Date "2018.11.04"]
[Round "3"]
[White "Ranaldi, Lucas"]
[Black "Ekeberg, Carl Fredrik"]
[Result "1-0"]
[ECO "A13"]
[WhiteElo "2305"]
[BlackElo "2280"]
[Annotator "broadcasts"]
[PlyCount "65"]
[EventDate "2018.11.02"]
[EventType "team-tourn"]
[EventCountry "NOR"]
[TimeControl "40/5400+30:1800+30"]

1. c4 {[%emt 0:01:46]} e6 {[%emt 0:00:27]} 2. g3 {[%emt 0:00:43]} d5 {[%emt 0:00:36]} 3. Bg2 {[%emt 0:00:06]} Nf6 {[%emt 0:00:11]} 4. Nf3 {[%emt 0:00:04]} dxc4 {[%emt 0:00:55]} 5. Qa4+ {[%emt 0:00:08]} Bd7 {[%emt 0:00:08]} 6. Qxc4 {[%emt 0:00:08]} c5 {[%emt 0:00:15]} 7. Ne5 {[%emt 0:00:34]} Qc8 {[%emt 0:00:51]} 8. O-O {[%emt 0:00:28]} Nc6 {[%emt 0:03:45]} 9. Nxd7 {[%emt 0:00:12]} Qxd7 {[%emt 0:00:09]} 10. Nc3 {[%emt 0:00:34]} Rc8 {[%emt 0:02:50]} 11. Qa4 {[%emt 0:01:14]} b6 {[%emt 0:17:54]} 12. d3 {[%emt 0:15:23]} Be7 {[%emt 0:01:52]} 13. Be3 {[%emt 0:00:10]} O-O {[%emt 0:02:26]} 14. Rac1 {[%emt 0:04:36]} Rfd8 {[%emt 0:03:06]} 15. Rfd1 {[%emt 0:01:27]} Ne8 {[%emt 0:04:08]} 16. Ne4 {[%emt 0:12:38]} Nf6 {[%emt 0:20:17]} 17. Nc3 {[%emt 0:15:54]} Ne8 {[%emt 0:00:12]} 18. Ne4 {[%emt 0:00:22]} Nf6 {[%emt 0:02:12]} 19. Bd2 {[%emt 0:02:24]} Nd5 {[%emt 0:06:31]} 20. Kf1 {[%emt 0:04:21]} h6 {[%emt 0:03:07]} 21. Rb1 {[%emt 0:05:29]} a5 {[%emt 0:06:45]} 22. Rbc1 {[%emt 0:02:48]} Qb7 {[%emt 0:03:49]} 23. Nc3 {[%emt 0:02:13]} Bf6 {[%emt 0:01:58]} 24. Qg4 {[%emt 0:09:10]} Qd7 {[%emt 0:08:25]} 25. Nxd5 {[%emt 0:01:07]} exd5 {[%emt 0:00:08]} 26. Qxd7 {[%emt 0:00:24]} Rxd7 {[%emt 0:00:02]} 27. Bh3 {[%emt 0:00:15]} Rcd8 {[%emt 0:01:54]} 28. Bxd7 {[%emt 0:00:08]} Rxd7 {[%emt 0:00:04]} 29. Bc3 {[%emt 0:02:29]} Be7 {[%emt 0:00:41]} 30. e3 {[%emt 0:06:05]} b5 {[%emt 0:01:06]} 31. Bd4 {[%emt 0:05:51]} c4 {[%emt 0:03:33]} 32. dxc4 {[%emt 0:00:27]} dxc4 {[%emt 0:00:52]} 33. a4 {[%emt 0:01:30]} 1-0

[Event "NOR-chT Eliteserien 2018-19"]
[Site "Norway"]
[Date "2018.11.04"]
[Round "3"]
[White "Gabrielsen, Trond"]
[Black "Gudbrandsen, Gustav"]
[Result "1-0"]
[ECO "C11"]
[WhiteElo "2291"]
[BlackElo "2265"]
[Annotator "broadcasts"]
[PlyCount "59"]
[EventDate "2018.11.02"]
[EventType "team-tourn"]
[EventCountry "NOR"]
[TimeControl "40/5400+30:1800+30"]

1. e4 {[%emt 0:00:00]} e6 {[%emt 0:00:03]} 2. d4 {[%emt 0:00:00]} d5 {[%emt 0:00:15]} 3. Nc3 {[%emt 0:00:08]} Nf6 {[%emt 0:00:48]} 4. e5 {[%emt 0:00:23]} Nfd7 {[%emt 0:00:17]} 5. f4 {[%emt 0:00:07]} c5 {[%emt 0:00:18]} 6. Nf3 {[%emt 0:00:06]} Nc6 {[%emt 0:00:19]} 7. Be3 {[%emt 0:00:20]} a6 {[%emt 0:01:20]} 8. Qd2 {[%emt 0:01:39]} b5 {[%emt 0:01:51]} 9. dxc5 {[%emt 0:00:46]} Bxc5 {[%emt 0:02:20]} 10. Bd3 {[%emt 0:01:21]} Qb6 {[%emt 0:04:01]} 11. Bf2 {[%emt 0:00:17]} Nb4 {[%emt 0:06:57]} 12. O-O {[%emt 0:03:07]} Nxd3 {[%emt 0:04:48]} 13. cxd3 {[%emt 0:00:54]} Bxf2+ {[%emt 0:16:32]} 14. Qxf2 {[%emt 0:03:49]} b4 {[%emt 0:05:27]} 15. Na4 {[%emt 0:25:17]} Qxf2+ {[%emt 0:08:19]} 16. Kxf2 {[%emt 0:01:05]} a5 {[%emt 0:00:21]} 17. Rfc1 {[%emt 0:02:29]} Ba6 {[%emt 0:00:51]} 18. Ke3 {[%emt 0:01:01]} Ke7 {[%emt 0:08:25]} 19. Rc7 {[%emt 0:26:51]} Bb5 {[%emt 0:02:57]} 20. Nb6 {[%emt 0:02:29]} Ra6 {[%emt 0:00:23]} 21. Nc8+ {[%emt 0:13:10]} Kd8 {[%emt 0:01:03]} 22. Rac1 {[%emt 0:03:42]} Bc4 {[%emt 0:04:23]} 23. Ra7 {[%emt 0:00:24]} Rxa7 {[%emt 0:03:06]} 24. Nxa7 {[%emt 0:00:07]} Ba6 {[%emt 0:00:23]} 25. Nd4 {[%emt 0:09:03]} Nb8 {[%emt 0:05:28]} 26. Nac6+ {[%emt 0:01:36]} Nxc6 {[%emt 0:01:05]} 27. Rxc6 {[%emt 0:00:51]} Bb7 {[%emt 0:00:53]} 28. Rc5 {[%emt 0:00:08]} Kd7 {[%emt 0:01:02]} 29. Rxa5 {[%emt 0:00:11]} Kc7 {[%emt 0:00:51]} 30. Rc5+ {[%emt 0:00:25]} 1-0

[Event "NOR-chT Eliteserien 2018-19"]
[Site "Norway"]
[Date "2018.11.04"]
[Round "3"]
[White "Nielsen, Andre"]
[Black "Rygg, Andreas Gangstad"]
[Result "1/2-1/2"]
[ECO "B77"]
[WhiteElo "2260"]
[BlackElo "1845"]
[Annotator "broadcasts"]
[PlyCount "84"]
[EventDate "2018.11.02"]
[EventType "team-tourn"]
[EventCountry "NOR"]
[TimeControl "40/5400+30:1800+30"]

1. e4 {[%emt 0:00:00]} c5 {[%emt 0:00:00]} 2. Nf3 {[%emt 0:00:00]} Nc6 {[%emt 0:00:00]} 3. d4 {[%emt 0:00:00]} cxd4 {[%emt 0:00:00]} 4. Nxd4 {[%emt 0:00:11]} g6 {[%emt 0:00:00]} 5. Nc3 {[%emt 0:00:52]} Bg7 {[%emt 0:00:04]} 6. Be3 {[%emt 0:00:14]} Nf6 {[%emt 0:00:10]} 7. Bc4 {[%emt 0:01:05]} O-O {[%emt 0:00:09]} 8. Bb3 {[%emt 0:00:18]} d6 {[%emt 0:00:25]} 9. f3 {[%emt 0:00:33]} Bd7 {[%emt 0:00:19]} 10. Qd2 {[%emt 0:00:46]} Nxd4 {[%emt 0:00:13]} 11. Bxd4 {[%emt 0:00:12]} b5 {[%emt 0:00:11]} 12. Nd5 {[%emt 0:09:41]} Nxd5 {[%emt 0:10:40]} 13. Bxg7 {[%emt 0:02:36]} Kxg7 {[%emt 0:01:07]} 14. exd5 {[%emt 0:01:02]} Qb6 {[%emt 0:07:10]} 15. O-O-O {[%emt 0:13:21]} a5 {[%emt 0:04:07]} 16. c3 {[%emt 0:02:19]} b4 {[%emt 0:17:08]} 17. Qd4+ {[%emt 0:09:24]} Qxd4 {[%emt 0:00:08]} 18. Rxd4 {[%emt 0:00:10]} bxc3 {[%emt 0:07:11]} 19. bxc3 {[%emt 0:00:14]} Rfc8 {[%emt 0:00:52]} 20. Kd2 {[%emt 0:02:08]} Rcb8 {[%emt 0:11:03]} 21. Re1 {[%emt 0:18:09]} a4 {[%emt 0:04:15]} 22. Bc2 {[%emt 0:01:23]} e6 {[%emt 0:13:18]} 23. Rb1 {[%emt 0:14:57]} exd5 {[%emt 0:03:12]} 24. Rxd5 {[%emt 0:01:54]} Be6 {[%emt 0:00:29]} 25. Rxd6 {[%emt 0:03:24]} Bxa2 {[%emt 0:00:20]} 26. Rxb8 {[%emt 0:01:10]} Rxb8 {[%emt 0:00:02]} 27. Bxa4 {[%emt 0:05:11]} Rb2+ {[%emt 0:00:53]} 28. Ke3 {[%emt 0:00:09]} Rxg2 {[%emt 0:02:46]} 29. Rd2 {[%emt 0:00:24]} Rxd2 {[%emt 0:00:05]} 30. Kxd2 {[%emt 0:00:04]} g5 {[%emt 0:00:56]} 31. Ke3 {[%emt 0:02:28]} Kf6 {[%emt 0:03:40]} 32. Bb5 {[%emt 0:01:33]} Ke5 {[%emt 0:00:58]} 33. c4 {[%emt 0:02:08]} f5 {[%emt 0:01:23]} 34. c5 {[%emt 0:01:28]} Bd5 {[%emt 0:01:43]} 35. Bd7 {[%emt 0:01:01]} h6 {[%emt 0:05:00]} 36. Be8 {[%emt 0:01:40]} Ke6 {[%emt 0:03:17]} 37. f4 {[%emt 0:02:19]} Be4 {[%emt 0:03:20]} 38. fxg5 {[%emt 0:03:32]} hxg5 {[%emt 0:00:05]} 39. Kd4 {[%emt 0:00:15]} Bb7 {[%emt 0:01:09]} 40. c6 {[%emt 0:00:00]} Bxc6 {[%emt 0:00:00]} 41. Bxc6 {[%emt 0:01:22]} Kf6 {[%emt 0:00:20]} 42. Bg2 {[%emt 0:01:35]} f4 {[%emt 0:00:33]} 1/2-1/2

[Event "NOR-chT Eliteserien 2018-19"]
[Site "Norway"]
[Date "2018.11.04"]
[Round "3"]
[White "David, Edwin"]
[Black "Mikalsen, Erlend"]
[Result "0-1"]
[ECO "B59"]
[WhiteElo "2218"]
[BlackElo "2368"]
[Annotator "broadcasts RC"]
[PlyCount "80"]
[EventDate "2018.11.02"]
[EventType "team-tourn"]
[EventCountry "NOR"]
[TimeControl "40/5400+30:1800+30"]

1. e4 {[%emt 0:00:00]} c5 {[%emt 0:00:00]} 2. Nf3 {[%emt 0:00:00]} d6 {[%emt 0:00:00]} 3. d4 {[%emt 0:00:00]} cxd4 {[%emt 0:00:00]} 4. Nxd4 {[%emt 0:00:00]} Nf6 {[%emt 0:00:00]} 5. Nc3 {[%emt 0:00:00]} Nc6 {[%emt 0:00:00]} 6. Be2 {[%emt 0:07:57]} e5 {[%emt 0:00:06]} 7. Nb3 {[%emt 0:01:25]} Be7 {[%emt 0:00:30]} 8. O-O {[%emt 0:01:15]} O-O {[%emt 0:04:22]} 9. f3 {[%emt 0:06:50]} Be6 {[%emt 0:02:04]} 10. Nd5 {[%emt 0:03:55]} a5 {[%emt 0:02:25]} 11. Nxe7+ {[%emt 0:13:17]} Qxe7 {[%emt 0:00:57]} 12. Bg5 {[%emt 0:03:06]} a4 {[%emt 0:03:01]} 13. Nd2 {[%emt 0:05:25]} d5 {[%emt 0:00:39]} 14. Kh1 {[%emt 0:00:25]} h6 {[%emt 0:08:39]} 15. Bh4 {[%emt 0:00:47]} g5 {[%emt 0:05:23]} 16. Bf2 {[%emt 0:00:50]} Qb4 {[%emt 0:00:48]} 17. Qc1 {[%emt 0:05:55]} Ne7 {[%emt 0:06:30]} 18. a3 {[%emt 0:02:15]} Qd6 {[%emt 0:00:02]} 19. h4 {[%emt 0:04:06]} Ng6 {[%emt 0:00:24]} 20. exd5 {[%emt 0:02:19]} Bxd5 {[%emt 0:05:22]} 21. Nc4 {[%emt 0:04:52]} Qe6 {[%emt 0:01:08]} 22. Nb6 {[%emt 0:01:47]} Nf4 {[%emt 0:00:37]} 23. Nxa8 {[%emt 0:05:55]} Rxa8 {[%emt 0:03:03]} 24. Qe3 {[%emt 0:03:35]} N6h5 {[%emt 0:10:45]} 25. Rg1 {[%emt 0:06:00]} Qf6 {[%emt 0:04:15]} 26. Bd3 {[%emt 0:10:10]} gxh4 {[%emt 0:04:17]} 27. Be4 {[%emt 0:00:47]} Ng3+ {[%emt 0:08:40]} 28. Kh2 {[%emt 0:00:06]} Kh8 {[%emt 0:04:49]} 29. Rae1 {[%emt 0:03:49]} Bxe4 {[%emt 0:00:11]} 30. fxe4 {[%emt 0:00:08]} Rg8 {[%emt 0:00:29]} 31. Qf3 {[%emt 0:00:10]} Qc6 {[%emt 0:00:59]} 32. Be3 {[%emt 0:04:17]} Nfh5 {[%emt 0:01:51]} 33. Qxf7 {[%emt 0:00:44]} Nf6 {[%emt 0:00:04]} 34. Rgf1 {[%emt 0:02:07]} Nxf1+ {[%emt 0:03:05]} 35. Rxf1 {[%emt 0:00:04]} Ng4+ {[%emt 0:00:03]} 36. Kg1 {[%emt 0:01:41]} Qxe4 {[%emt 0:02:26]} 37. Bc5 {[%emt 0:01:09]} Ne3 {[%emt 0:01:42]} 38. Rf3 {[%emt 0:01:02]} Nxg2 {[%emt 0:01:18]} 39. Qf6+ {[%emt 0:00:42]} Kh7 {[%emt 0:00:01]} 40. Kh2 {[%emt 0:00:00]} Nf4 {[%emt 0:00:00]} 0-1

[Event "NOR-chT Eliteserien 2018-19"]
[Site "Norway"]
[Date "2018.11.04"]
[Round "3"]
[White "Abdrlauf, Elham"]
[Black "Machlik, Endre"]
[Result "0-1"]
[ECO "B18"]
[WhiteElo "2160"]
[BlackElo "2154"]
[Annotator "broadcasts"]
[PlyCount "64"]
[EventDate "2018.11.02"]
[EventType "team-tourn"]
[EventCountry "NOR"]
[TimeControl "40/5400+30:1800+30"]

1. e4 {[%emt 0:00:00]} c6 {[%emt 0:04:20]} 2. d4 {[%emt 0:00:58]} d5 {[%emt 0:00:04]} 3. Nc3 {[%emt 0:01:03]} dxe4 {[%emt 0:00:15]} 4. Nxe4 {[%emt 0:00:04]} Bf5 {[%emt 0:00:13]} 5. Ng3 {[%emt 0:00:07]} Bg6 {[%emt 0:00:05]} 6. h4 {[%emt 0:00:55]} h6 {[%emt 0:00:05]} 7. Nh3 {[%emt 0:00:07]} Nf6 {[%emt 0:03:17]} 8. Nf4 {[%emt 0:00:25]} Bh7 {[%emt 0:01:00]} 9. Bc4 {[%emt 0:02:38]} e6 {[%emt 0:01:57]} 10. c3 {[%emt 0:01:11]} Bd6 {[%emt 0:04:06]} 11. Ngh5 {[%emt 0:06:03]} O-O {[%emt 0:02:57]} 12. Qf3 {[%emt 0:07:37]} Nbd7 {[%emt 0:03:45]} 13. Be3 {[%emt 0:24:27]} e5 {[%emt 0:06:41]} 14. Qg3 {[%emt 0:15:27]} Ne8 {[%emt 0:11:40]} 15. dxe5 {[%emt 0:07:15]} Nxe5 {[%emt 0:00:28]} 16. Bb3 {[%emt 0:05:24]} Nd3+ {[%emt 0:01:54]} 17. Ke2 {[%emt 0:00:44]} Nxb2 {[%emt 0:13:54]} 18. Bd4 {[%emt 0:07:26]} Nd3 {[%emt 0:00:30]} 19. Be3 {[%emt 0:04:31]} Qa5 {[%emt 0:02:20]} 20. Bd2 {[%emt 0:08:59]} Rd8 {[%emt 0:04:30]} 21. Rhd1 {[%emt 0:04:38]} Nxf4+ {[%emt 0:08:06]} 22. Nxf4 {[%emt 0:00:02]} Nf6 {[%emt 0:00:07]} 23. c4 {[%emt 0:00:58]} Qe5+ {[%emt 0:00:07]} 24. Kf1 {[%emt 0:00:30]} Ne4 {[%emt 0:00:15]} 25. Qe3 {[%emt 0:00:30]} Nxd2+ {[%emt 0:00:15]} 26. Qxd2 {[%emt 0:00:30]} Qxf4 {[%emt 0:00:06]} 27. Qa5 {[%emt 0:00:29]} b6 {[%emt 0:01:11]} 28. Qxa7 {[%emt 0:00:30]} Bc5 {[%emt 0:00:09]} 29. f3 {[%emt 0:00:31]} Qe3 {[%emt 0:00:13]} 30. Qxf7+ {[%emt 0:00:30]} Kxf7 {[%emt 0:00:08]} 31. Rd2 {[%emt 0:00:30]} Rxd2 {[%emt 0:00:10]} 32. Re1 {[%emt 0:00:30]} Qf2# {[%emt 0:00:05]} 0-1